[Event "*** Titled Tuesday Blitz"]
[Site "Chess.com"]
[Date "2019.06.04"]
[Round "3"]
[White "alturas_pacificas"]
[Black "H3nriqueTV"]
[Result "1-0"]
[WhiteElo "2272"]
[BlackElo "2170"]
[TimeControl "180+2"]
[EndTime "13:37:16 PDT"]
[Termination "alturas_pacificas won by resignation"]

1. d4 {[%clk 0:03:01.9]} 1... d5 {[%clk 0:03:00.3]} 2. Bf4 {[%clk 0:03:03.4]}
2... Nf6 {[%clk 0:02:53.2]} 3. e3 {[%clk 0:03:04.8]} 3... g6 {[%clk 0:02:53.2]}
4. c4 {[%clk 0:03:05.2]} 4... c6 {[%clk 0:02:52.8]} 5. Nc3 {[%clk 0:03:06.2]}
5... Bg7 {[%clk 0:02:54.6]} 6. Nf3 {[%clk 0:03:07.4]} 6... O-O {[%clk
0:02:55.9]} 7. h3 {[%clk 0:03:08.9]} 7... Nbd7 {[%clk 0:02:55.5]} 8. Be2 {[%clk
0:03:08.8]} 8... Re8 {[%clk 0:02:56.3]} 9. O-O {[%clk 0:03:10.2]} 9... e6 {[%clk
0:02:50.2]} 10. a3 {[%clk 0:02:59.4]} 10... Ne4 {[%clk 0:02:49.8]} 11. Nxe4
{[%clk 0:02:59.5]} 11... dxe4 {[%clk 0:02:49.7]} 12. Nd2 {[%clk 0:03:01]} 12...
f5 {[%clk 0:02:51.1]} 13. Bh2 {[%clk 0:02:47.5]} 13... Qe7 {[%clk 0:02:04.4]}
14. b4 {[%clk 0:02:48]} 14... Kh8 {[%clk 0:01:58.3]} 15. Qb3 {[%clk 0:02:44.9]}
15... b6 {[%clk 0:01:54.1]} 16. a4 {[%clk 0:02:35.8]} 16... Bb7 {[%clk
0:01:55.2]} 17. a5 {[%clk 0:02:27.2]} 17... Rac8 {[%clk 0:01:52.3]} 18. axb6
{[%clk 0:02:26.1]} 18... axb6 {[%clk 0:01:53.4]} 19. Ra7 {[%clk 0:02:26.9]}
19... Ba8 {[%clk 0:01:53.9]} 20. Rfa1 {[%clk 0:02:22.6]} 20... c5 {[%clk
0:01:51.6]} 21. bxc5 {[%clk 0:02:11.6]} 21... bxc5 {[%clk 0:01:51.2]} 22. Nf1
{[%clk 0:01:27.2]} 22... cxd4 {[%clk 0:01:50.1]} 23. exd4 {[%clk 0:01:28.2]}
23... Bxd4 {[%clk 0:01:50.8]} 24. Ne3 {[%clk 0:01:20]} 24... Bxa1 {[%clk
0:01:48.5]} 25. Rxa1 {[%clk 0:01:21.9]} 25... Qf6 {[%clk 0:01:45.7]} 26. Ra7
{[%clk 0:01:15.3]} 26... Nc5 {[%clk 0:01:35.1]} 27. Qa3 {[%clk 0:01:11.5]} 27...
Red8 {[%clk 0:01:25.1]} 28. Rxa8 {[%clk 0:01:00.9]} 28... Rxa8 {[%clk
0:01:23.6]} 29. Qxc5 {[%clk 0:01:02.3]} 29... Kg8 {[%clk 0:01:14.8]} 30. Be5
{[%clk 0:00:55.5]} 30... Qf7 {[%clk 0:01:10.7]} 31. Qb4 {[%clk 0:00:40.5]} 31...
Qd7 {[%clk 0:01:10.2]} 32. c5 {[%clk 0:00:36.6]} 32... Rac8 {[%clk 0:01:11]} 33.
Bd6 {[%clk 0:00:34.9]} 33... Qc6 {[%clk 0:01:12]} 34. Bc4 {[%clk 0:00:31.9]}
34... Kf7 {[%clk 0:01:12.4]} 35. Qb3 {[%clk 0:00:33.3]} 35... Qd7 {[%clk
0:01:10.5]} 36. Nc2 {[%clk 0:00:30.8]} 36... Re8 {[%clk 0:00:58.6]} 37. Nd4
{[%clk 0:00:29.1]} 37... Ra8 {[%clk 0:00:55.7]} 38. Bb5 {[%clk 0:00:26.3]} 38...
Qc8 {[%clk 0:00:55.9]} 39. Bxe8+ {[%clk 0:00:23]} 39... Qxe8 {[%clk 0:00:57]}
40. Qb7+ {[%clk 0:00:23.1]} 40... Kg8 {[%clk 0:00:55.6]} 41. Kh2 {[%clk
0:00:20.1]} 41... Rc8 {[%clk 0:00:49.2]} 42. Qb3 {[%clk 0:00:18.1]} 42... Kf7
{[%clk 0:00:49.7]} 43. Qb7+ {[%clk 0:00:19.3]} 43... Kg8 {[%clk 0:00:50.2]} 44.
Qb3 {[%clk 0:00:18.9]} 44... Kf7 {[%clk 0:00:50.9]} 45. g3 {[%clk 0:00:20.3]}
45... Kf6 {[%clk 0:00:51.2]} 46. Qb7 {[%clk 0:00:20]} 46... e5 {[%clk
0:00:48.5]} 47. Ne2 {[%clk 0:00:19.2]} 47... Qc6 {[%clk 0:00:49.5]} 48. Qxh7
{[%clk 0:00:18.5]} 48... e3 {[%clk 0:00:50.9]} 49. Qh4+ {[%clk 0:00:18.8]} 49...
Kg7 {[%clk 0:00:51.8]} 50. Qe7+ {[%clk 0:00:18.9]} 50... Kg8 {[%clk 0:00:51.9]}
51. fxe3 {[%clk 0:00:18.3]} 51... Re8 {[%clk 0:00:51.8]} 52. Qf6 {[%clk
0:00:18.7]} 52... Ra8 {[%clk 0:00:48]} 53. Qxg6+ {[%clk 0:00:19.4]} 53... Kh8
{[%clk 0:00:49.9]} 54. Bxe5+ {[%clk 0:00:18.6]} 1-0

[Event "*** Titled Tuesday Blitz"]
[Site "Chess.com"]
[Date "2019.06.04"]
[Round "3"]
[White "rasmussvane"]
[Black "temus_galaktionov"]
[Result "0-1"]
[WhiteElo "2873"]
[BlackElo "2702"]
[TimeControl "180+2"]
[EndTime "13:37:17 PDT"]
[Termination "temus_galaktionov won by resignation"]

1. Nf3 {[%clk 0:03:01.9]} 1... c6 {[%clk 0:02:52.9]} 2. g3 {[%clk 0:03:01.9]}
2... g6 {[%clk 0:02:54.1]} 3. Bg2 {[%clk 0:03:01.7]} 3... Bg7 {[%clk 0:02:55.6]}
4. O-O {[%clk 0:03:03.2]} 4... d6 {[%clk 0:02:57.1]} 5. d4 {[%clk 0:03:01.2]}
5... Nd7 {[%clk 0:02:58.6]} 6. e4 {[%clk 0:03:00.3]} 6... e5 {[%clk 0:02:59.3]}
7. dxe5 {[%clk 0:03:01.4]} 7... dxe5 {[%clk 0:03:00.2]} 8. a4 {[%clk 0:03:00.6]}
8... Ngf6 {[%clk 0:03:00.9]} 9. Nc3 {[%clk 0:03:00.8]} 9... O-O {[%clk
0:03:01.6]} 10. b3 {[%clk 0:03:01.5]} 10... Re8 {[%clk 0:03:00]} 11. Ba3 {[%clk
0:03:02]} 11... Qa5 {[%clk 0:02:59.6]} 12. Qd2 {[%clk 0:02:54.5]} 12... Nf8
{[%clk 0:02:52.5]} 13. Nd5 {[%clk 0:02:43.3]} 13... Qxd2 {[%clk 0:02:48]} 14.
Nxf6+ {[%clk 0:02:44.3]} 14... Bxf6 {[%clk 0:02:49]} 15. Nxd2 {[%clk 0:02:45.9]}
15... Ne6 {[%clk 0:02:46.9]} 16. c3 {[%clk 0:02:33.3]} 16... b6 {[%clk
0:02:47.7]} 17. Rfd1 {[%clk 0:02:32.8]} 17... Ba6 {[%clk 0:02:47.8]} 18. Bf1
{[%clk 0:02:30.9]} 18... Bxf1 {[%clk 0:02:46.9]} 19. Kxf1 {[%clk 0:02:32.8]}
19... Red8 {[%clk 0:02:44.4]} 20. Ke2 {[%clk 0:02:27.6]} 20... b5 {[%clk
0:02:36.7]} 21. axb5 {[%clk 0:02:12.5]} 21... cxb5 {[%clk 0:02:37.6]} 22. Bb4
{[%clk 0:02:13.6]} 22... a6 {[%clk 0:02:34.1]} 23. Ra2 {[%clk 0:02:09.4]} 23...
Bg5 {[%clk 0:02:23.4]} 24. Nf3 {[%clk 0:02:03.1]} 24... Rxd1 {[%clk 0:02:23.3]}
25. Kxd1 {[%clk 0:02:05]} 25... f6 {[%clk 0:02:24.3]} 26. Ke2 {[%clk 0:01:53.2]}
26... Bh6 {[%clk 0:02:23.8]} 27. Ne1 {[%clk 0:01:35.8]} 27... Kf7 {[%clk
0:01:54]} 28. Nd3 {[%clk 0:01:36.7]} 28... Ke8 {[%clk 0:01:52.9]} 29. Ra1 {[%clk
0:01:26.2]} 29... Kd7 {[%clk 0:01:48.3]} 30. Rd1 {[%clk 0:01:27.2]} 30... Ke8
{[%clk 0:01:42.7]} 31. Ra1 {[%clk 0:01:11]} 31... Kd7 {[%clk 0:01:41.9]} 32. f3
{[%clk 0:01:06.8]} 32... Kc6 {[%clk 0:01:41.7]} 33. Ba5 {[%clk 0:01:06.7]} 33...
Bf8 {[%clk 0:01:37.7]} 34. Rd1 {[%clk 0:01:03.7]} 34... Ra7 {[%clk 0:01:31]} 35.
Bb4 {[%clk 0:00:57.3]} 35... a5 {[%clk 0:01:30.3]} 36. Bxf8 {[%clk 0:00:56.3]}
36... Nxf8 {[%clk 0:01:31.3]} 37. f4 {[%clk 0:00:51]} 37... Nd7 {[%clk
0:01:29.2]} 38. Ke3 {[%clk 0:00:50.6]} 38... exf4+ {[%clk 0:01:23.9]} 39. gxf4
{[%clk 0:00:52.5]} 39... Ra8 {[%clk 0:01:24.7]} 40. Ra1 {[%clk 0:00:48.3]} 40...
Nc5 {[%clk 0:01:19.6]} 41. Nxc5 {[%clk 0:00:43]} 41... Kxc5 {[%clk 0:01:20.8]}
42. b4+ {[%clk 0:00:44.6]} 42... Kc4 {[%clk 0:01:19.2]} 43. bxa5 {[%clk
0:00:35.8]} 43... Kxc3 {[%clk 0:01:18.9]} 44. a6 {[%clk 0:00:33.3]} 44... b4
{[%clk 0:01:19.1]} 45. Rc1+ {[%clk 0:00:34.4]} 45... Kb2 {[%clk 0:01:19.3]} 46.
Rc6 {[%clk 0:00:35.3]} 46... b3 {[%clk 0:01:18]} 47. Rxf6 {[%clk 0:00:13.2]}
47... Ka2 {[%clk 0:01:18.7]} 48. f5 {[%clk 0:00:13.4]} 48... gxf5 {[%clk
0:01:12.8]} 49. exf5 {[%clk 0:00:14.4]} 49... b2 {[%clk 0:01:14]} 50. Rb6 {[%clk
0:00:15.4]} 50... b1=Q {[%clk 0:01:14.9]} 51. Rxb1 {[%clk 0:00:16.9]} 51... Kxb1
{[%clk 0:01:15.3]} 52. Kf4 {[%clk 0:00:18.4]} 52... Rxa6 {[%clk 0:01:15.8]} 53.
Ke5 {[%clk 0:00:19.6]} 53... Rh6 {[%clk 0:01:11.2]} 54. f6 {[%clk 0:00:15.7]}
54... Rxh2 {[%clk 0:01:11.3]} 55. Kf5 {[%clk 0:00:13.8]} 55... Rf2+ {[%clk
0:01:12.2]} 56. Kg5 {[%clk 0:00:15.3]} 56... Kc2 {[%clk 0:01:12.7]} 57. Kh6
{[%clk 0:00:11.8]} 57... Rxf6+ {[%clk 0:01:12.5]} 58. Kxh7 {[%clk 0:00:13.1]}
58... Kd3 {[%clk 0:01:12.8]} 0-1

[Event "*** Titled Tuesday Blitz"]
[Site "Chess.com"]
[Date "2019.06.04"]
[Round "3"]
[White "Mikhail_Golubev"]
[Black "LawrenceTrent"]
[Result "0-1"]
[WhiteElo "2481"]
[BlackElo "2696"]
[TimeControl "180+2"]
[EndTime "13:37:18 PDT"]
[Termination "LawrenceTrent won on time"]

1. e4 {[%clk 0:03:01.9]} 1... c5 {[%clk 0:02:59.4]} 2. Nf3 {[%clk 0:03:00.7]}
2... d6 {[%clk 0:02:58.4]} 3. d4 {[%clk 0:03:01.4]} 3... cxd4 {[%clk 0:02:58.9]}
4. Nxd4 {[%clk 0:03:02]} 4... Nf6 {[%clk 0:02:53.7]} 5. Nc3 {[%clk 0:03:02.6]}
5... Nc6 {[%clk 0:02:54]} 6. Bc4 {[%clk 0:03:00.8]} 6... e6 {[%clk 0:02:51.5]}
7. Be3 {[%clk 0:02:59.1]} 7... a6 {[%clk 0:02:49.2]} 8. Qe2 {[%clk 0:02:50.5]}
8... Qc7 {[%clk 0:02:49.1]} 9. Bb3 {[%clk 0:02:48]} 9... Na5 {[%clk 0:02:46.9]}
10. g4 {[%clk 0:02:46.9]} 10... Nd7 {[%clk 0:02:40.2]} 11. Bxe6 {[%clk
0:02:32.1]} 11... fxe6 {[%clk 0:02:41.2]} 12. Nxe6 {[%clk 0:02:32.7]} 12... Qc6
{[%clk 0:02:40.5]} 13. Nd5 {[%clk 0:02:28.9]} 13... Ne5 {[%clk 0:02:28.6]} 14.
Nec7+ {[%clk 0:01:59.7]} 14... Kd8 {[%clk 0:02:26.9]} 15. Bg5+ {[%clk
0:01:44.4]} 15... Kd7 {[%clk 0:02:21.9]} 16. Nxa8 {[%clk 0:01:43.6]} 16... Ke8
{[%clk 0:02:13]} 17. Rg1 {[%clk 0:01:29.6]} 17... b5 {[%clk 0:02:06.6]} 18.
Nac7+ {[%clk 0:01:25.5]} 18... Kf7 {[%clk 0:02:06.8]} 19. O-O-O {[%clk 0:01:16]}
19... h6 {[%clk 0:01:46.1]} 20. Bf4 {[%clk 0:01:11.1]} 20... g5 {[%clk
0:01:43.9]} 21. Bxe5 {[%clk 0:01:08.9]} 21... dxe5 {[%clk 0:01:44]} 22. Qf3+
{[%clk 0:01:05]} 22... Kg7 {[%clk 0:01:39.8]} 23. Qc3 {[%clk 0:00:39.4]} 23...
Nc4 {[%clk 0:01:16.3]} 24. b3 {[%clk 0:00:38.9]} 24... Ba3+ {[%clk 0:01:16.5]}
25. Kb1 {[%clk 0:00:38.5]} 25... Bb2 {[%clk 0:01:11.2]} 26. Qd3 {[%clk
0:00:38.7]} 26... Bd4 {[%clk 0:01:12.4]} 27. bxc4 {[%clk 0:00:35.3]} 27... bxc4
{[%clk 0:01:13.1]} 28. Qa3 {[%clk 0:00:35.6]} 28... Bc5 {[%clk 0:01:00.4]} 29.
Qb2 {[%clk 0:00:32.1]} 29... Bd6 {[%clk 0:00:55.5]} 30. f4 {[%clk 0:00:21.7]}
30... gxf4 {[%clk 0:00:49.1]} 31. g5 {[%clk 0:00:22.4]} 31... h5 {[%clk
0:00:30.1]} 32. Nxf4 {[%clk 0:00:20.7]} 32... Qxc7 {[%clk 0:00:26.5]} 33. Nd5
{[%clk 0:00:19.9]} 33... Qc5 {[%clk 0:00:27.6]} 34. Rgf1 {[%clk 0:00:17.6]}
34... Be6 {[%clk 0:00:28.7]} 35. Qc3 {[%clk 0:00:15.3]} 35... Rb8+ {[%clk
0:00:19.8]} 36. Ka1 {[%clk 0:00:15.1]} 36... Qa3 {[%clk 0:00:18.4]} 37. Rb1
{[%clk 0:00:11]} 37... Qc5 {[%clk 0:00:11.7]} 38. Rxb8 {[%clk 0:00:09.6]} 38...
Bxb8 {[%clk 0:00:13.6]} 39. Rf6 {[%clk 0:00:08.4]} 39... Bxd5 {[%clk 0:00:13.5]}
40. exd5 {[%clk 0:00:07.2]} 40... Bd6 {[%clk 0:00:13.5]} 41. Qf3 {[%clk
0:00:04.6]} 41... Qd4+ {[%clk 0:00:13.5]} 42. Kb1 {[%clk 0:00:03.8]} 42... Qg1+
{[%clk 0:00:13.7]} 43. Kb2 {[%clk 0:00:03.6]} 43... c3+ {[%clk 0:00:15.1]} 0-1

[Event "*** Titled Tuesday Blitz"]
[Site "Chess.com"]
[Date "2019.06.04"]
[Round "3"]
[White "Sanan_Sjugirov"]
[Black "Blitzstream"]
[Result "1-0"]
[WhiteElo "2860"]
[BlackElo "2675"]
[TimeControl "180+2"]
[EndTime "13:37:21 PDT"]
[Termination "Sanan_Sjugirov won by resignation"]

1. e4 {[%clk 0:03:01.9]} 1... d5 {[%clk 0:03:00.7]} 2. exd5 {[%clk 0:03:02.8]}
2... Qxd5 {[%clk 0:03:02.6]} 3. Nc3 {[%clk 0:03:03.9]} 3... Qa5 {[%clk
0:03:02.1]} 4. d4 {[%clk 0:03:04.9]} 4... Nf6 {[%clk 0:03:03.3]} 5. Nf3 {[%clk
0:03:05.8]} 5... c6 {[%clk 0:03:04.5]} 6. Bc4 {[%clk 0:03:06.9]} 6... Bf5 {[%clk
0:03:05.2]} 7. Bd2 {[%clk 0:03:08]} 7... e6 {[%clk 0:03:06.3]} 8. Nd5 {[%clk
0:03:08.3]} 8... Qd8 {[%clk 0:03:06.9]} 9. Nxf6+ {[%clk 0:03:09.7]} 9... Qxf6
{[%clk 0:03:08.8]} 10. Qe2 {[%clk 0:03:01.6]} 10... Nd7 {[%clk 0:03:08]} 11.
O-O-O {[%clk 0:02:56.5]} 11... b5 {[%clk 0:03:08.5]} 12. Bb3 {[%clk 0:02:54.6]}
12... Bd6 {[%clk 0:03:02.2]} 13. h3 {[%clk 0:02:38.2]} 13... h6 {[%clk 0:02:43]}
14. g4 {[%clk 0:02:13.5]} 14... Bh7 {[%clk 0:02:43.2]} 15. h4 {[%clk 0:02:05.6]}
15... a5 {[%clk 0:02:30.6]} 16. a3 {[%clk 0:01:16]} 16... Qe7 {[%clk 0:01:43.2]}
17. a4 {[%clk 0:00:46.3]} 17... bxa4 {[%clk 0:01:28.8]} 18. Bxa4 {[%clk
0:00:46.2]} 18... O-O {[%clk 0:01:30]} 19. Bxc6 {[%clk 0:00:28.6]} 19... Rfc8
{[%clk 0:01:24.5]} 20. Be4 {[%clk 0:00:28.6]} 20... Bxe4 {[%clk 0:01:18.1]} 21.
Qxe4 {[%clk 0:00:30.5]} 21... a4 {[%clk 0:00:49.9]} 22. Kb1 {[%clk 0:00:31.2]}
22... Ba3 {[%clk 0:00:42]} 23. Ka2 {[%clk 0:00:20.9]} 23... Bxb2 {[%clk
0:00:39.5]} 24. Kxb2 {[%clk 0:00:21.8]} 24... Nb6 {[%clk 0:00:06.8]} 25. Ka2
{[%clk 0:00:18.3]} 25... Nc4 {[%clk 0:00:05.2]} 26. Qd3 {[%clk 0:00:16.6]} 26...
Rab8 {[%clk 0:00:05.1]} 27. Rb1 {[%clk 0:00:16.5]} 27... Rb3 {[%clk 0:00:05.7]}
28. Rxb3 {[%clk 0:00:06.1]} 28... axb3+ {[%clk 0:00:07]} 29. Qxb3 {[%clk
0:00:06.9]} 29... Qa7+ {[%clk 0:00:08.2]} 30. Kb1 {[%clk 0:00:06.1]} 30... Rb8
{[%clk 0:00:09.6]} 31. Bb4 {[%clk 0:00:06.7]} 31... Na5 {[%clk 0:00:06.5]} 32.
Qa4 {[%clk 0:00:06]} 32... Qb6 {[%clk 0:00:05.3]} 33. c3 {[%clk 0:00:06.6]}
33... Nc4 {[%clk 0:00:06.6]} 34. Kc2 {[%clk 0:00:06.9]} 34... Qb7 {[%clk
0:00:07.9]} 35. Rh3 {[%clk 0:00:05]} 35... Qe4+ {[%clk 0:00:08.9]} 36. Kb3
{[%clk 0:00:06.5]} 36... Nb6 {[%clk 0:00:08.8]} 37. Qa2 {[%clk 0:00:07.7]} 37...
Nd5 {[%clk 0:00:10]} 38. Qc2 {[%clk 0:00:07.8]} 38... Qxg4 {[%clk 0:00:10]} 39.
Rg3 {[%clk 0:00:08.6]} 39... Qh5 {[%clk 0:00:11.3]} 40. Qe4 {[%clk 0:00:08.7]}
40... g6 {[%clk 0:00:07.9]} 41. Qe5 {[%clk 0:00:08.8]} 41... g5 {[%clk
0:00:06.6]} 42. Qxb8+ {[%clk 0:00:09.5]} 1-0

[Event "*** Titled Tuesday Blitz"]
[Site "Chess.com"]
[Date "2019.06.04"]
[Round "3"]
[White "SergeiAza"]
[Black "Borsuk_Konstantin"]
[Result "1-0"]
[WhiteElo "2772"]
[BlackElo "2598"]
[TimeControl "180+2"]
[EndTime "13:37:25 PDT"]
[Termination "SergeiAza won by checkmate"]

1. e4 {[%clk 0:03:01.9]} 1... e6 {[%clk 0:03:00.5]} 2. d4 {[%clk 0:03:02.2]}
2... d5 {[%clk 0:03:01.8]} 3. Nd2 {[%clk 0:03:03.7]} 3... Nf6 {[%clk 0:03:02]}
4. e5 {[%clk 0:03:04.9]} 4... Nfd7 {[%clk 0:03:03.2]} 5. Bd3 {[%clk 0:03:06.4]}
5... c5 {[%clk 0:03:04.5]} 6. c3 {[%clk 0:03:08.1]} 6... Nc6 {[%clk 0:03:05]} 7.
Ne2 {[%clk 0:03:09.7]} 7... b6 {[%clk 0:03:05.9]} 8. O-O {[%clk 0:03:03.6]} 8...
cxd4 {[%clk 0:03:06.6]} 9. cxd4 {[%clk 0:03:04.2]} 9... Nb4 {[%clk 0:03:07.7]}
10. Bb1 {[%clk 0:03:04.9]} 10... Ba6 {[%clk 0:03:08.9]} 11. Nf3 {[%clk 0:02:50]}
11... Be7 {[%clk 0:02:59.6]} 12. a3 {[%clk 0:02:43.4]} 12... Nc6 {[%clk
0:03:00.2]} 13. Re1 {[%clk 0:02:44.6]} 13... b5 {[%clk 0:02:47.4]} 14. Nf4
{[%clk 0:02:30]} 14... Nb6 {[%clk 0:02:45.9]} 15. Nh5 {[%clk 0:02:28.6]} 15...
g6 {[%clk 0:02:46.5]} 16. Nf6+ {[%clk 0:02:11.9]} 16... Bxf6 {[%clk 0:02:46.1]}
17. exf6 {[%clk 0:02:13.8]} 17... Qxf6 {[%clk 0:02:47.6]} 18. Bg5 {[%clk
0:02:15.1]} 18... Qg7 {[%clk 0:02:47.9]} 19. Qc1 {[%clk 0:02:13]} 19... Rc8
{[%clk 0:02:44.3]} 20. Qf4 {[%clk 0:01:55.5]} 20... Nd7 {[%clk 0:02:42.9]} 21.
Bh6 {[%clk 0:01:00.2]} 21... Qf6 {[%clk 0:02:43.4]} 22. Qe3 {[%clk 0:01:01.2]}
22... Ne7 {[%clk 0:02:30.2]} 23. Bg5 {[%clk 0:00:58]} 23... Qg7 {[%clk
0:02:30.1]} 24. Bh6 {[%clk 0:00:58.5]} 24... Qf6 {[%clk 0:02:26.8]} 25. Ne5
{[%clk 0:00:57.2]} 25... Ng8 {[%clk 0:01:07.2]} 26. Bg5 {[%clk 0:00:54]} 26...
Qg7 {[%clk 0:01:08.2]} 27. Bd3 {[%clk 0:00:48.1]} 27... f6 {[%clk 0:01:08.5]}
28. Nxd7 {[%clk 0:00:41.9]} 28... Qxd7 {[%clk 0:01:08.5]} 29. Qxe6+ {[%clk
0:00:41.7]} 29... Qxe6 {[%clk 0:01:09.5]} 30. Rxe6+ {[%clk 0:00:43.2]} 30... Kf7
{[%clk 0:01:06.5]} 31. Rxa6 {[%clk 0:00:44.6]} 31... fxg5 {[%clk 0:01:07.6]} 32.
Rxa7+ {[%clk 0:00:45.4]} 32... Kf6 {[%clk 0:00:53.6]} 33. Ra6+ {[%clk
0:00:39.7]} 33... Kg7 {[%clk 0:00:49.3]} 34. Re1 {[%clk 0:00:37.9]} 34... Rc7
{[%clk 0:00:48.9]} 35. Bxb5 {[%clk 0:00:37]} 35... Nf6 {[%clk 0:00:49.2]} 36. f3
{[%clk 0:00:32.7]} 36... g4 {[%clk 0:00:49.8]} 37. a4 {[%clk 0:00:20.5]} 37...
gxf3 {[%clk 0:00:48.9]} 38. gxf3 {[%clk 0:00:21.6]} 38... Nh5 {[%clk 0:00:47.9]}
39. Rc6 {[%clk 0:00:19.7]} 39... Rf7 {[%clk 0:00:47.2]} 40. Re3 {[%clk
0:00:18.2]} 40... Rb8 {[%clk 0:00:44.7]} 41. b4 {[%clk 0:00:18]} 41... Nf4
{[%clk 0:00:39.9]} 42. Rec3 {[%clk 0:00:17.1]} 42... Kh6 {[%clk 0:00:31.4]} 43.
Rc7 {[%clk 0:00:16.8]} 43... Rf5 {[%clk 0:00:28.1]} 44. Rc8 {[%clk 0:00:17]}
44... Rb7 {[%clk 0:00:25.2]} 45. R3c7 {[%clk 0:00:17.4]} 45... Rb6 {[%clk
0:00:26.4]} 46. Rc6 {[%clk 0:00:18.5]} 46... Rb7 {[%clk 0:00:27.6]} 47. R6c7
{[%clk 0:00:19.3]} 47... Rb6 {[%clk 0:00:28.7]} 48. Rh8 {[%clk 0:00:19.9]} 48...
Kg5 {[%clk 0:00:24.6]} 49. Rhxh7 {[%clk 0:00:20.2]} 49... Rbf6 {[%clk
0:00:18.1]} 50. h4# {[%clk 0:00:18.9]} 1-0

[Event "*** Titled Tuesday Blitz"]
[Site "Chess.com"]
[Date "2019.06.04"]
[Round "3"]
[White "BvsN"]
[Black "Karacsonyi_Gellert"]
[Result "0-1"]
[WhiteElo "2294"]
[BlackElo "2538"]
[TimeControl "180+2"]
[EndTime "13:37:29 PDT"]
[Termination "Karacsonyi_Gellert won by resignation"]

1. d4 {[%clk 0:03:01.9]} 1... Nf6 {[%clk 0:03:00.6]} 2. c4 {[%clk 0:03:02.2]}
2... e6 {[%clk 0:03:01]} 3. Nc3 {[%clk 0:03:03.3]} 3... Bb4 {[%clk 0:03:01.9]}
4. f3 {[%clk 0:03:03.8]} 4... c5 {[%clk 0:02:58.2]} 5. d5 {[%clk 0:03:03.9]}
5... b5 {[%clk 0:02:57]} 6. e4 {[%clk 0:03:03.9]} 6... O-O {[%clk 0:02:57.4]} 7.
Nh3 {[%clk 0:02:53]} 7... Re8 {[%clk 0:02:52.6]} 8. Nf4 {[%clk 0:02:23.2]} 8...
exd5 {[%clk 0:02:34.6]} 9. cxd5 {[%clk 0:02:20.5]} 9... c4 {[%clk 0:02:18.7]}
10. Be2 {[%clk 0:02:14.2]} 10... Qb6 {[%clk 0:02:18.2]} 11. Bd2 {[%clk
0:02:04.2]} 11... d6 {[%clk 0:02:14.3]} 12. a4 {[%clk 0:01:59.6]} 12... Bd7
{[%clk 0:01:38]} 13. axb5 {[%clk 0:01:48.6]} 13... Bxb5 {[%clk 0:01:37.9]} 14.
Nxb5 {[%clk 0:01:47.1]} 14... Qxb5 {[%clk 0:01:32.4]} 15. O-O {[%clk 0:01:42]}
15... Bc5+ {[%clk 0:01:32.2]} 16. Kh1 {[%clk 0:01:42.6]} 16... Nbd7 {[%clk
0:01:32.3]} 17. Bc3 {[%clk 0:01:25.6]} 17... Ne5 {[%clk 0:01:23.2]} 18. Qa4
{[%clk 0:01:14.8]} 18... a6 {[%clk 0:01:13.8]} 19. Qa2 {[%clk 0:00:42.1]} 19...
Nfd7 {[%clk 0:01:11.9]} 20. Rab1 {[%clk 0:00:40]} 20... Be3 {[%clk 0:01:05.3]}
21. Nh5 {[%clk 0:00:38.6]} 21... g6 {[%clk 0:01:02]} 22. Ng3 {[%clk 0:00:38.6]}
22... Bf4 {[%clk 0:00:56.4]} 23. b3 {[%clk 0:00:32.3]} 23... cxb3 {[%clk
0:00:53.2]} 24. Rxb3 {[%clk 0:00:33.2]} 24... Qc5 {[%clk 0:00:50.7]} 25. Bb4
{[%clk 0:00:21.6]} 25... Qa7 {[%clk 0:00:39.4]} 26. Bd2 {[%clk 0:00:17.8]} 26...
Bxd2 {[%clk 0:00:38.3]} 27. Qxd2 {[%clk 0:00:18.9]} 27... Nc5 {[%clk 0:00:39.9]}
28. Ra3 {[%clk 0:00:19]} 28... Qe7 {[%clk 0:00:40.5]} 29. Rfa1 {[%clk
0:00:19.6]} 29... Reb8 {[%clk 0:00:36.4]} 30. h3 {[%clk 0:00:16]} 30... Qh4
{[%clk 0:00:36.6]} 31. Kh2 {[%clk 0:00:16.3]} 31... Qe7 {[%clk 0:00:37]} 32. Nf1
{[%clk 0:00:15.5]} 32... Ned7 {[%clk 0:00:37.9]} 33. Ne3 {[%clk 0:00:16]} 33...
Qe5+ {[%clk 0:00:38.8]} 34. Kh1 {[%clk 0:00:16.4]} 34... Nb3 {[%clk 0:00:39.9]}
35. Qe1 {[%clk 0:00:04.7]} 35... Nxa1 {[%clk 0:00:39.9]} 36. Rxa1 {[%clk
0:00:06.3]} 36... Nc5 {[%clk 0:00:34.9]} 37. Nc4 {[%clk 0:00:06.8]} 37... Qf6
{[%clk 0:00:35.4]} 38. Na5 {[%clk 0:00:05.3]} 38... Rb2 {[%clk 0:00:31.5]} 39.
Nc6 {[%clk 0:00:05.6]} 39... Rxe2 {[%clk 0:00:32.2]} 40. Qb1 {[%clk 0:00:04]}
40... Qg5 {[%clk 0:00:30.2]} 41. Qf1 {[%clk 0:00:03.5]} 41... Qd2 {[%clk
0:00:24.5]} 42. Qg1 {[%clk 0:00:04.1]} 42... Nd3 {[%clk 0:00:23.2]} 43. Rd1
{[%clk 0:00:05.4]} 43... Qxd1 {[%clk 0:00:18.3]} 44. Qxd1 {[%clk 0:00:06.3]}
44... Nf2+ {[%clk 0:00:19.7]} 45. Kg1 {[%clk 0:00:07.6]} 45... Nxd1 {[%clk
0:00:21.6]} 46. Kf1 {[%clk 0:00:09.1]} 46... Rc2 {[%clk 0:00:22.6]} 47. Ke1
{[%clk 0:00:10.5]} 47... Rxc6 {[%clk 0:00:23.6]} 48. dxc6 {[%clk 0:00:11.1]}
48... Rc8 {[%clk 0:00:25.5]} 0-1